[Event "Titled Tuesday Blitz March 21 Late 2023"]
[White "Mazurkiewicz, Michal"]
[Black "Bashirli, Nail"]
[WhiteFideId "1124943"]
[BlackFideId "13406809"]
[WhiteElo "2054"]
[BlackElo "2338"]
[Result "1-0"]
[Round "07"]
[TimeControl "180+2"]
[Date "2023.03.21"]
[WhiteClock "0:00:13"]
[BlackClock "0:00:09"]

1. e4 {[%clk 0:02:59]}  c5 {[%clk 0:02:59]} 2. Nf3 {[%clk 0:02:59]}  a6 {[%clk 0:02:59]} 3. g3 {[%clk 0:02:59]}  Nc6 {[%clk 0:02:56]} 4. Bg2 {[%clk 0:03:00]}  e6 {[%clk 0:02:55]} 5. d3 {[%clk 0:03:00]}  g6 {[%clk 0:02:54]} 6. O-O {[%clk 0:03:00]}  Bg7 {[%clk 0:02:54]} 7. Re1 {[%clk 0:03:00]}  Nge7 {[%clk 0:02:54]} 8. e5 {[%clk 0:03:00]}  O-O {[%clk 0:02:53]} 9. Nc3 {[%clk 0:02:59]}  Qc7 {[%clk 0:02:42]} 10. Bf4 {[%clk 0:02:56]}  b6 {[%clk 0:02:37]} 11. Qd2 {[%clk 0:02:50]}  Bb7 {[%clk 0:02:33]} 12. Bh6 {[%clk 0:02:41]}  Nd4 {[%clk 0:02:31]} 13. Nxd4 {[%clk 0:02:34]}  cxd4 {[%clk 0:02:26]} 14. Ne4 {[%clk 0:02:17]}  Bxe4 {[%clk 0:02:23]} 15. Bxe4 {[%clk 0:02:14]}  Rac8 {[%clk 0:02:19]} 16. Rac1 {[%clk 0:02:10]}  d6 {[%clk 0:02:01]} 17. Bxg7 {[%clk 0:00:52]}  Kxg7 {[%clk 0:02:02]} 18. f4 {[%clk 0:00:52]}  Rcd8 {[%clk 0:01:44]} 19. Qb4 {[%clk 0:00:41]}  dxe5 {[%clk 0:01:40]} 20. fxe5 {[%clk 0:00:40]}  a5 {[%clk 0:01:16]} 21. Qd2 {[%clk 0:00:32]}  Nc6 {[%clk 0:01:09]} 22. Bxc6 {[%clk 0:00:29]}  Qxc6 {[%clk 0:01:10]} 23. Qf4 {[%clk 0:00:30]}  Rd5 {[%clk 0:01:01]} 24. Qf6+ {[%clk 0:00:29]}  Kg8 {[%clk 0:01:01]} 25. Re4 {[%clk 0:00:30]}  Qc7 {[%clk 0:00:56]} 26. h4 {[%clk 0:00:24]}  Qd8 {[%clk 0:00:56]} 27. Qf4 {[%clk 0:00:24]}  Qe7 {[%clk 0:00:48]} 28. Rf1 {[%clk 0:00:23]}  Rc8 {[%clk 0:00:46]} 29. Rf2 {[%clk 0:00:23]}  Rdc5 {[%clk 0:00:45]} 30. Ree2 {[%clk 0:00:12]}  h5 {[%clk 0:00:43]} 31. Qxd4 {[%clk 0:00:11]}  Qc7 {[%clk 0:00:39]} 32. Qf4 {[%clk 0:00:09]}  Rd5 {[%clk 0:00:36]} 33. d4 {[%clk 0:00:08]}  b5 {[%clk 0:00:34]} 34. c3 {[%clk 0:00:08]}  b4 {[%clk 0:00:33]} 35. Re3 {[%clk 0:00:08]}  Qd7 {[%clk 0:00:28]} 36. Ref3 {[%clk 0:00:08]}  bxc3 {[%clk 0:00:27]} 37. bxc3 {[%clk 0:00:08]}  Rc7 {[%clk 0:00:26]} 38. Qg5 {[%clk 0:00:09]}  Rb5 {[%clk 0:00:26]} 39. Rxf7 {[%clk 0:00:08]}  Rb1+ {[%clk 0:00:24]} 40. Kh2 {[%clk 0:00:09]}  Qxf7 {[%clk 0:00:19]} 41. Rxf7 {[%clk 0:00:10]}  Kxf7 {[%clk 0:00:15]} 42. Qf6+ {[%clk 0:00:10]}  Ke8 {[%clk 0:00:15]} 43. Qxg6+ {[%clk 0:00:10]}  Kd8 {[%clk 0:00:14]} 44. Qxb1 {[%clk 0:00:11]}  Rxc3 {[%clk 0:00:11]} 45. Qb6+ {[%clk 0:00:12]}  Ke7 {[%clk 0:00:11]} 46. Qd6+ {[%clk 0:00:12]}  Kf7 {[%clk 0:00:11]} 47. Qd7+ {[%clk 0:00:13]}  Kf8 {[%clk 0:00:11]} 48. Qxe6 {[%clk 0:00:13]}  Rc2+ {[%clk 0:00:11]} 49. Kh3 {[%clk 0:00:13]}  Rc1 {[%clk 0:00:11]} 50. d5 {[%clk 0:00:13]}  Rh1+ {[%clk 0:00:07]} 51. Kg2 {[%clk 0:00:13]}  Rd1 {[%clk 0:00:08]} 52. d6 {[%clk 0:00:13]}  Rd2+ {[%clk 0:00:08]} 53. Kh3 {[%clk 0:00:14]}  Rxd6 {[%clk 0:00:09]} 54. exd6 {[%clk 0:00:13]} 1-0


[Site "https://www.chess.com"]

[Event "Titled Tuesday Blitz March 21 Late 2023"]
[White "EREBUNI91"]
[Black "Pniaczek, Marek"]
[BlackFideId "21800421"]
[WhiteElo "2720"]
[BlackElo "2138"]
[Result "0-1"]
[Round "07"]
[TimeControl "180+2"]
[Date "2023.03.21"]
[WhiteClock "0:00:15"]
[BlackClock "0:00:03"]

1. e4 {[%clk 0:03:00]}  e5 {[%clk 0:03:00]} 2. Nf3 {[%clk 0:03:00]}  Nc6 {[%clk 0:03:00]} 3. Bb5 {[%clk 0:03:01]}  a6 {[%clk 0:03:00]} 4. Ba4 {[%clk 0:03:01]}  Nf6 {[%clk 0:03:01]} 5. O-O {[%clk 0:03:02]}  Nxe4 {[%clk 0:03:01]} 6. Re1 {[%clk 0:02:56]}  Nd6 {[%clk 0:02:44]} 7. Nxe5 {[%clk 0:02:46]}  Be7 {[%clk 0:02:28]} 8. Qe2 {[%clk 0:02:43]}  Nd4 {[%clk 0:01:55]} 9. Qg4 {[%clk 0:02:12]}  N4f5 {[%clk 0:01:44]} 10. c4 {[%clk 0:02:04]}  O-O {[%clk 0:01:25]} 11. c5 {[%clk 0:01:58]}  Nh6 {[%clk 0:01:25]} 12. Qf3 {[%clk 0:01:44]}  Ndf5 {[%clk 0:01:23]} 13. d3 {[%clk 0:01:43]}  Bxc5 {[%clk 0:01:15]} 14. Nc3 {[%clk 0:01:39]}  d6 {[%clk 0:01:12]} 15. Nc4 {[%clk 0:01:40]}  Nd4 {[%clk 0:01:00]} 16. Qh5 {[%clk 0:01:29]}  b5 {[%clk 0:00:50]} 17. Bxh6 {[%clk 0:01:28]}  gxh6 {[%clk 0:00:49]} 18. Nd5 {[%clk 0:01:00]}  Qg5 {[%clk 0:00:35]} 19. Ne7+ {[%clk 0:00:42]}  Kh8 {[%clk 0:00:29]} 20. Qd1 {[%clk 0:00:43]}  Bb7 {[%clk 0:00:21]} 21. Ne3 {[%clk 0:00:41]}  Nf3+ {[%clk 0:00:18]} 22. Kh1 {[%clk 0:00:41]}  Nxe1 {[%clk 0:00:18]} 23. Qxe1 {[%clk 0:00:29]}  Bxe3 {[%clk 0:00:18]} 24. Qc3+ {[%clk 0:00:30]}  Qe5 {[%clk 0:00:15]} 25. Qxc7 {[%clk 0:00:30]}  bxa4 {[%clk 0:00:07]} 26. Qxb7 {[%clk 0:00:30]}  Bxf2 {[%clk 0:00:06]} 27. Nc6 {[%clk 0:00:27]}  Qg7 {[%clk 0:00:06]} 28. Rf1 {[%clk 0:00:27]}  Bc5 {[%clk 0:00:04]} 29. Ne7 {[%clk 0:00:26]}  Rfe8 {[%clk 0:00:04]} 30. Nf5 {[%clk 0:00:26]}  Qf6 {[%clk 0:00:04]} 31. Qf3 {[%clk 0:00:24]}  Rg8 {[%clk 0:00:04]} 32. h3 {[%clk 0:00:21]}  Qxb2 {[%clk 0:00:04]} 33. Nxh6 {[%clk 0:00:21]}  Rg7 {[%clk 0:00:04]} 34. Qh5 {[%clk 0:00:21]}  Rf8 {[%clk 0:00:03]} 35. Qf3 {[%clk 0:00:21]}  Qe5 {[%clk 0:00:02]} 36. Nf5 {[%clk 0:00:21]}  Qf6 {[%clk 0:00:02]} 37. Qe2 {[%clk 0:00:19]}  Qg6 {[%clk 0:00:02]} 38. Rf3 {[%clk 0:00:16]}  Rfg8 {[%clk 0:00:01]} 39. Nxg7 {[%clk 0:00:15]}  Qxg7 {[%clk 0:00:02]} 40. Qe4 {[%clk 0:00:14]}  Qa1+ {[%clk 0:00:03]} 41. Kh2 {[%clk 0:00:15]}  Qg1# {[%clk 0:00:03]} 0-1


[Site "https://www.chess.com"]

[Event "Titled Tuesday Blitz March 21 Late 2023"]
[White "Martynov, Pavel"]
[Black "Bolanos, Fernando"]
[WhiteFideId "4101260"]
[BlackFideId "3304094"]
[WhiteElo "2314"]
[BlackElo "2166"]
[Result "0-1"]
[Round "07"]
[TimeControl "180+2"]
[Date "2023.03.21"]
[WhiteClock "0:01:28"]
[BlackClock "0:02:08"]

1. e4 {[%clk 0:03:00]}  c5 {[%clk 0:03:00]} 2. Nf3 {[%clk 0:03:00]}  d6 {[%clk 0:02:56]} 3. Bb5+ {[%clk 0:03:00]}  Nd7 {[%clk 0:02:56]} 4. O-O {[%clk 0:02:59]}  a6 {[%clk 0:02:55]} 5. Bxd7+ {[%clk 0:02:59]}  Bxd7 {[%clk 0:02:54]} 6. c3 {[%clk 0:02:59]}  g6 {[%clk 0:02:54]} 7. Re1 {[%clk 0:02:59]}  Bg7 {[%clk 0:02:55]} 8. d4 {[%clk 0:03:00]}  cxd4 {[%clk 0:02:55]} 9. cxd4 {[%clk 0:03:01]}  Rc8 {[%clk 0:02:53]} 10. Nc3 {[%clk 0:03:01]}  Nh6 {[%clk 0:02:52]} 11. h3 {[%clk 0:03:00]}  O-O {[%clk 0:02:51]} 12. Qb3 {[%clk 0:02:58]}  b5 {[%clk 0:02:50]} 13. Bg5 {[%clk 0:02:50]}  Kh8 {[%clk 0:02:47]} 14. e5 {[%clk 0:02:46]}  dxe5 {[%clk 0:02:45]} 15. dxe5 {[%clk 0:02:47]}  Nf5 {[%clk 0:02:42]} 16. Rad1 {[%clk 0:02:48]}  Qc7 {[%clk 0:02:42]} 17. Nd5 {[%clk 0:02:47]}  Qb7 {[%clk 0:02:42]} 18. Nxe7 {[%clk 0:02:42]}  Be6 {[%clk 0:02:37]} 19. Nd5 {[%clk 0:01:43]}  Rc5 {[%clk 0:02:12]} 20. Be3 {[%clk 0:01:38]}  Rxd5 {[%clk 0:02:11]} 21. Rxd5 {[%clk 0:01:36]}  Bxd5 {[%clk 0:02:11]} 22. Qb4 {[%clk 0:01:28]}  Bxf3 {[%clk 0:02:08]} 0-1


[Site "https://www.chess.com"]

[Event "Titled Tuesday Blitz March 21 Late 2023"]
[White "Todev, Simeon"]
[Black "Skvortsov, Andrei"]
[WhiteFideId "2925133"]
[BlackFideId "24108600"]
[WhiteElo "1938"]
[BlackElo "2259"]
[Result "1-0"]
[Round "07"]
[TimeControl "180+2"]
[Date "2023.03.21"]
[WhiteClock "0:00:09"]
[BlackClock "0:00:04"]

1. e4 {[%clk 0:03:00]}  c5 {[%clk 0:03:00]} 2. Nf3 {[%clk 0:02:56]}  d6 {[%clk 0:03:00]} 3. c3 {[%clk 0:02:50]}  Nf6 {[%clk 0:02:57]} 4. Bd3 {[%clk 0:02:50]}  g5 {[%clk 0:02:54]} 5. Nxg5 {[%clk 0:02:44]}  Rg8 {[%clk 0:02:54]} 6. h4 {[%clk 0:02:42]}  h6 {[%clk 0:02:53]} 7. Nh3 {[%clk 0:02:43]}  Rxg2 {[%clk 0:02:51]} 8. Nf4 {[%clk 0:02:42]}  Rg4 {[%clk 0:02:42]} 9. Nd5 {[%clk 0:02:37]}  Nxe4 {[%clk 0:01:39]} 10. f3 {[%clk 0:02:27]}  e6 {[%clk 0:01:06]} 11. fxg4 {[%clk 0:02:02]}  exd5 {[%clk 0:01:06]} 12. Bxe4 {[%clk 0:02:01]}  dxe4 {[%clk 0:01:07]} 13. d3 {[%clk 0:01:59]}  exd3 {[%clk 0:01:02]} 14. Qxd3 {[%clk 0:01:57]}  Bxg4 {[%clk 0:01:02]} 15. Bf4 {[%clk 0:01:54]}  Qe7+ {[%clk 0:00:59]} 16. Kf2 {[%clk 0:01:51]}  Qf6 {[%clk 0:00:54]} 17. Kg3 {[%clk 0:01:38]}  Bf5 {[%clk 0:00:25]} 18. Re1+ {[%clk 0:01:33]}  Kd8 {[%clk 0:00:26]} 19. Qb5 {[%clk 0:01:26]}  Qg6+ {[%clk 0:00:20]} 20. Kf2 {[%clk 0:01:24]}  Bd7 {[%clk 0:00:17]} 21. Qe2 {[%clk 0:00:42]}  Bc6 {[%clk 0:00:16]} 22. Rg1 {[%clk 0:00:41]}  Qf5 {[%clk 0:00:15]} 23. Qg4 {[%clk 0:00:34]}  Qxg4 {[%clk 0:00:08]} 24. Rxg4 {[%clk 0:00:34]}  Nd7 {[%clk 0:00:08]} 25. Rg8 {[%clk 0:00:33]}  Kc7 {[%clk 0:00:08]} 26. Bxh6 {[%clk 0:00:29]}  Bd5 {[%clk 0:00:06]} 27. Na3 {[%clk 0:00:23]}  f5 {[%clk 0:00:06]} 28. Rh8 {[%clk 0:00:22]}  a6 {[%clk 0:00:06]} 29. c4 {[%clk 0:00:16]}  Be4 {[%clk 0:00:06]} 30. Rd1 {[%clk 0:00:13]}  Rd8 {[%clk 0:00:06]} 31. Bg5 {[%clk 0:00:13]}  Re8 {[%clk 0:00:06]} 32. Bh6 {[%clk 0:00:13]}  Rd8 {[%clk 0:00:06]} 33. h5 {[%clk 0:00:10]}  b6 {[%clk 0:00:05]} 34. Bxf8 {[%clk 0:00:08]}  Rxf8 {[%clk 0:00:04]} 35. Rxf8 {[%clk 0:00:08]}  Nxf8 {[%clk 0:00:05]} 36. h6 {[%clk 0:00:08]}  f4 {[%clk 0:00:05]} 37. Re1 {[%clk 0:00:08]}  Bf5 {[%clk 0:00:03]} 38. Re7+ {[%clk 0:00:09]}  Kd8 {[%clk 0:00:04]} 39. Rf7 {[%clk 0:00:09]} 1-0


[Site "https://www.chess.com"]

[Event "Titled Tuesday Blitz March 21 Late 2023"]
[White "Durarbayli, Vasif"]
[Black "Sielecki, Christof"]
[WhiteFideId "13402935"]
[BlackFideId "4620437"]
[WhiteElo "2543"]
[BlackElo "2443"]
[Result "1-0"]
[Round "07"]
[TimeControl "180+2"]
[Date "2023.03.21"]
[WhiteClock "0:00:01"]
[BlackClock "0:00:11"]

1. e4 {[%clk 0:02:54]}  c5 {[%clk 0:02:59]} 2. Nf3 {[%clk 0:02:54]}  a6 {[%clk 0:02:59]} 3. Be2 {[%clk 0:02:51]}  Nc6 {[%clk 0:02:57]} 4. O-O {[%clk 0:02:51]}  Nf6 {[%clk 0:02:56]} 5. e5 {[%clk 0:02:51]}  Ng4 {[%clk 0:02:56]} 6. d4 {[%clk 0:02:49]}  cxd4 {[%clk 0:02:52]} 7. Bf4 {[%clk 0:02:49]}  d6 {[%clk 0:02:47]} 8. exd6 {[%clk 0:02:41]}  e5 {[%clk 0:02:47]} 9. Bg3 {[%clk 0:02:40]}  Bxd6 {[%clk 0:02:42]} 10. c3 {[%clk 0:02:41]}  O-O {[%clk 0:02:34]} 11. h3 {[%clk 0:02:26]}  Nf6 {[%clk 0:02:28]} 12. cxd4 {[%clk 0:02:26]}  exd4 {[%clk 0:02:25]} 13. Bh4 {[%clk 0:02:24]}  Bf5 {[%clk 0:02:18]} 14. Bd3 {[%clk 0:02:19]}  Bxd3 {[%clk 0:02:11]} 15. Qxd3 {[%clk 0:02:20]}  h6 {[%clk 0:02:09]} 16. Nbd2 {[%clk 0:02:19]}  Rc8 {[%clk 0:02:04]} 17. a3 {[%clk 0:02:17]}  Re8 {[%clk 0:01:50]} 18. Rfe1 {[%clk 0:02:15]}  Rxe1+ {[%clk 0:01:42]} 19. Rxe1 {[%clk 0:02:16]}  Bf8 {[%clk 0:01:40]} 20. g4 {[%clk 0:01:19]}  g5 {[%clk 0:01:35]} 21. Bg3 {[%clk 0:01:18]}  Bd6 {[%clk 0:01:27]} 22. Qf5 {[%clk 0:00:49]}  Bxg3 {[%clk 0:01:21]} 23. fxg3 {[%clk 0:00:50]}  Kg7 {[%clk 0:01:19]} 24. h4 {[%clk 0:00:36]}  Ne7 {[%clk 0:01:00]} 25. Qd3 {[%clk 0:00:27]}  Qd6 {[%clk 0:00:48]} 26. Kg2 {[%clk 0:00:14]}  Nxg4 {[%clk 0:00:39]} 27. hxg5 {[%clk 0:00:12]}  Ng6 {[%clk 0:00:20]} 28. Ne4 {[%clk 0:00:07]}  Qd5 {[%clk 0:00:14]} 29. gxh6+ {[%clk 0:00:07]}  Nxh6 {[%clk 0:00:14]} 30. Neg5 {[%clk 0:00:02]}  Nf5 {[%clk 0:00:11]} 31. Re5 {[%clk 0:00:01]} 1-0


[Site "https://www.chess.com"]

[Event "Titled Tuesday Blitz March 21 Late 2023"]
[White "Ismagilov, Damir"]
[Black "Chigaev, Maksim"]
[WhiteFideId "34199982"]
[BlackFideId "4108116"]
[WhiteElo "2078"]
[BlackElo "2547"]
[Result "0-1"]
[Round "07"]
[TimeControl "180+2"]
[Date "2023.03.21"]
[WhiteClock "0:00:06"]
[BlackClock "0:00:03"]

1. d4 {[%clk 0:03:00]}  Nf6 {[%clk 0:02:59]} 2. Nf3 {[%clk 0:03:01]}  d5 {[%clk 0:02:59]} 3. Bg5 {[%clk 0:03:00]}  c5 {[%clk 0:02:59]} 4. Bxf6 {[%clk 0:03:00]}  gxf6 {[%clk 0:02:58]} 5. dxc5 {[%clk 0:03:00]}  Nc6 {[%clk 0:02:57]} 6. e3 {[%clk 0:02:53]}  e6 {[%clk 0:02:54]} 7. Nbd2 {[%clk 0:02:51]}  Bxc5 {[%clk 0:02:54]} 8. Bd3 {[%clk 0:02:51]}  e5 {[%clk 0:02:38]} 9. e4 {[%clk 0:02:50]}  f5 {[%clk 0:02:37]} 10. exd5 {[%clk 0:02:48]}  Qxd5 {[%clk 0:02:37]} 11. Qe2 {[%clk 0:02:06]}  Be7 {[%clk 0:02:06]} 12. Bc4 {[%clk 0:02:00]}  Qa5 {[%clk 0:02:00]} 13. O-O {[%clk 0:01:26]}  e4 {[%clk 0:01:56]} 14. Ng5 {[%clk 0:01:20]}  Bxg5 {[%clk 0:00:58]} 15. Qh5 {[%clk 0:01:19]}  Bxd2 {[%clk 0:00:58]} 16. Qxf7+ {[%clk 0:01:18]}  Kd8 {[%clk 0:00:59]} 17. Qf6+ {[%clk 0:00:49]}  Kc7 {[%clk 0:00:59]} 18. Qxh8 {[%clk 0:00:49]}  Qe5 {[%clk 0:01:00]} 19. Qxh7+ {[%clk 0:00:48]}  Bd7 {[%clk 0:00:59]} 20. h3 {[%clk 0:00:31]}  Rh8 {[%clk 0:00:57]} 21. Qf7 {[%clk 0:00:31]}  Bb4 {[%clk 0:00:42]} 22. Rad1 {[%clk 0:00:21]}  Bd6 {[%clk 0:00:42]} 23. g3 {[%clk 0:00:18]}  e3 {[%clk 0:00:42]} 24. f4 {[%clk 0:00:17]}  Qc5 {[%clk 0:00:31]} 25. Be2 {[%clk 0:00:16]}  Nd4 {[%clk 0:00:15]} 26. Rxd4 {[%clk 0:00:13]}  Qxd4 {[%clk 0:00:16]} 27. Rd1 {[%clk 0:00:12]}  Qc5 {[%clk 0:00:16]} 28. c3 {[%clk 0:00:11]}  Rd8 {[%clk 0:00:14]} 29. Qf6 {[%clk 0:00:11]}  Qb6 {[%clk 0:00:03]} 30. b4 {[%clk 0:00:11]}  Ba4 {[%clk 0:00:03]} 31. Rd4 {[%clk 0:00:09]}  Kb8 {[%clk 0:00:02]} 32. h4 {[%clk 0:00:08]}  Bc7 {[%clk 0:00:01]} 33. Rxd8+ {[%clk 0:00:07]}  Bxd8 {[%clk 0:00:02]} 34. Qxf5 {[%clk 0:00:07]}  Bc6 {[%clk 0:00:02]} 35. Qe5+ {[%clk 0:00:07]}  Qc7 {[%clk 0:00:02]} 36. Qh8 {[%clk 0:00:06]}  a5 {[%clk 0:00:02]} 37. h5 {[%clk 0:00:06]}  axb4 {[%clk 0:00:03]} 38. cxb4 {[%clk 0:00:06]}  Be4 {[%clk 0:00:03]} 39. h6 {[%clk 0:00:06]}  Ka7 {[%clk 0:00:02]} 40. Qd4+ {[%clk 0:00:05]}  Qb6 {[%clk 0:00:02]} 41. Qxe4 {[%clk 0:00:06]}  Qxh6 {[%clk 0:00:02]} 42. Qxe3+ {[%clk 0:00:06]}  Bb6 {[%clk 0:00:03]} 0-1


[Site "https://www.chess.com"]

[Event "Titled Tuesday Blitz March 21 Late 2023"]
[White "Di Berardino, Diego Rafael"]
[Black "Ozen, Bahadir"]
[WhiteFideId "2105446"]
[BlackFideId "6337058"]
[WhiteElo "2432"]
[BlackElo "2503"]
[Result "1/2-1/2"]
[Round "07"]
[TimeControl "180+2"]
[Date "2023.03.21"]
[WhiteClock "0:01:13"]
[BlackClock "0:01:19"]

1. c4 {[%clk 0:03:00]}  e6 {[%clk 0:02:59]} 2. g3 {[%clk 0:02:56]}  d5 {[%clk 0:02:56]} 3. Bg2 {[%clk 0:02:56]}  Nf6 {[%clk 0:02:56]} 4. Nf3 {[%clk 0:02:54]}  dxc4 {[%clk 0:02:56]} 5. Qa4+ {[%clk 0:02:50]}  c6 {[%clk 0:02:54]} 6. Qxc4 {[%clk 0:02:50]}  b5 {[%clk 0:02:55]} 7. Qc2 {[%clk 0:02:50]}  Bb7 {[%clk 0:02:52]} 8. O-O {[%clk 0:02:51]}  c5 {[%clk 0:02:33]} 9. d3 {[%clk 0:02:47]}  Nbd7 {[%clk 0:02:30]} 10. a4 {[%clk 0:02:47]}  a6 {[%clk 0:02:29]} 11. Nc3 {[%clk 0:02:30]}  Qb6 {[%clk 0:02:15]} 12. axb5 {[%clk 0:02:29]}  axb5 {[%clk 0:02:15]} 13. Rxa8+ {[%clk 0:02:30]}  Bxa8 {[%clk 0:02:16]} 14. d4 {[%clk 0:02:02]}  Be7 {[%clk 0:01:34]} 15. dxc5 {[%clk 0:01:55]}  Bxc5 {[%clk 0:01:34]} 16. Qb3 {[%clk 0:01:35]}  Bc6 {[%clk 0:01:30]} 17. Ne1 {[%clk 0:01:28]}  Bxg2 {[%clk 0:01:23]} 18. Nxg2 {[%clk 0:01:26]}  b4 {[%clk 0:01:19]} 19. Na4 {[%clk 0:01:26]}  Qb5 {[%clk 0:01:19]} 20. Nxc5 {[%clk 0:01:20]}  Nxc5 {[%clk 0:01:19]} 21. Qf3 {[%clk 0:01:13]}  O-O {[%clk 0:01:19]} 1/2-1/2


[Site "https://www.chess.com"]

[Event "Titled Tuesday Blitz March 21 Late 2023"]
[White "Yuan, Qingyu"]
[Black "Domingo Nunez, Alejandro"]
[WhiteFideId "8609772"]
[BlackFideId "22245561"]
[WhiteElo "2359"]
[BlackElo "2230"]
[Result "0-1"]
[Round "07"]
[TimeControl "180+2"]
[Date "2023.03.21"]
[WhiteClock "0:00:08"]
[BlackClock "0:00:12"]

1. e4 {[%clk 0:03:00]}  g6 {[%clk 0:02:59]} 2. d4 {[%clk 0:03:01]}  Bg7 {[%clk 0:02:59]} 3. Nc3 {[%clk 0:03:00]}  c6 {[%clk 0:02:59]} 4. f4 {[%clk 0:03:00]}  d5 {[%clk 0:03:00]} 5. e5 {[%clk 0:03:00]}  f6 {[%clk 0:03:00]} 6. Nf3 {[%clk 0:02:53]}  Nh6 {[%clk 0:02:59]} 7. Bd3 {[%clk 0:02:49]}  O-O {[%clk 0:02:58]} 8. O-O {[%clk 0:02:48]}  Bg4 {[%clk 0:02:55]} 9. Ne2 {[%clk 0:02:40]}  c5 {[%clk 0:02:52]} 10. c3 {[%clk 0:02:33]}  cxd4 {[%clk 0:02:51]} 11. cxd4 {[%clk 0:02:31]}  Nc6 {[%clk 0:02:51]} 12. h3 {[%clk 0:02:20]}  Bxf3 {[%clk 0:01:26]} 13. Rxf3 {[%clk 0:02:18]}  fxe5 {[%clk 0:01:25]} 14. dxe5 {[%clk 0:02:18]}  Nf5 {[%clk 0:01:16]} 15. Kh1 {[%clk 0:01:51]}  e6 {[%clk 0:01:14]} 16. Bd2 {[%clk 0:01:31]}  Nh4 {[%clk 0:00:50]} 17. Rf1 {[%clk 0:01:28]}  Qb6 {[%clk 0:00:49]} 18. b3 {[%clk 0:01:10]}  Rac8 {[%clk 0:00:45]} 19. Rc1 {[%clk 0:01:07]}  Nb4 {[%clk 0:00:45]} 20. Bb1 {[%clk 0:01:03]}  a5 {[%clk 0:00:43]} 21. Be1 {[%clk 0:01:00]}  Nf5 {[%clk 0:00:42]} 22. Bf2 {[%clk 0:01:00]}  Ne3 {[%clk 0:00:31]} 23. Qe1 {[%clk 0:00:44]}  d4 {[%clk 0:00:27]} 24. Rg1 {[%clk 0:00:38]}  Nbd5 {[%clk 0:00:23]} 25. Qd2 {[%clk 0:00:30]}  Rxc1 {[%clk 0:00:12]} 26. Rxc1 {[%clk 0:00:30]}  Bxe5 {[%clk 0:00:13]} 27. Bg1 {[%clk 0:00:06]}  Nxf4 {[%clk 0:00:13]} 28. Nxf4 {[%clk 0:00:04]}  Bxf4 {[%clk 0:00:13]} 29. Qd3 {[%clk 0:00:02]}  Qd6 {[%clk 0:00:10]} 30. Re1 {[%clk 0:00:02]}  Qd5 {[%clk 0:00:10]} 31. Bxe3 {[%clk 0:00:02]}  Bxe3 {[%clk 0:00:09]} 32. Re2 {[%clk 0:00:02]}  Rf1+ {[%clk 0:00:09]} 33. Kh2 {[%clk 0:00:03]}  Qe5+ {[%clk 0:00:10]} 34. g3 {[%clk 0:00:03]}  Qf6 {[%clk 0:00:09]} 35. Qe4 {[%clk 0:00:03]}  Rf2+ {[%clk 0:00:09]} 36. Rxf2 {[%clk 0:00:03]}  Qxf2+ {[%clk 0:00:10]} 37. Qg2 {[%clk 0:00:04]}  Qe1 {[%clk 0:00:09]} 38. Be4 {[%clk 0:00:04]}  Kg7 {[%clk 0:00:09]} 39. Bxb7 {[%clk 0:00:04]}  d3 {[%clk 0:00:09]} 40. Bf3 {[%clk 0:00:03]}  d2 {[%clk 0:00:10]} 41. h4 {[%clk 0:00:03]}  d1=Q {[%clk 0:00:09]} 42. Bxd1 {[%clk 0:00:04]}  Qxd1 {[%clk 0:00:10]} 43. Qe4 {[%clk 0:00:05]}  Qe2+ {[%clk 0:00:10]} 44. Kh3 {[%clk 0:00:05]}  Qf1+ {[%clk 0:00:10]} 45. Kh2 {[%clk 0:00:06]}  Bg1+ {[%clk 0:00:10]} 46. Kh1 {[%clk 0:00:06]}  Bf2+ {[%clk 0:00:10]} 47. Kh2 {[%clk 0:00:07]}  Qg1+ {[%clk 0:00:11]} 48. Kh3 {[%clk 0:00:08]}  Qxg3# {[%clk 0:00:12]} 0-1


[Site "https://www.chess.com"]

[Event "Titled Tuesday Blitz March 21 Late 2023"]
[White "Do Valle Cardoso, Lucas"]
[Black "Astafurov, Arseniy"]
[WhiteFideId "2163144"]
[BlackFideId "24175218"]
[WhiteElo "2383"]
[BlackElo "2163"]
[Result "1-0"]
[Round "07"]
[TimeControl "180+2"]
[Date "2023.03.21"]
[WhiteClock "0:00:21"]
[BlackClock "0:00:02"]

1. e4 {[%clk 0:03:00]}  c5 {[%clk 0:02:59]} 2. Nf3 {[%clk 0:02:59]}  e6 {[%clk 0:02:59]} 3. d4 {[%clk 0:02:59]}  cxd4 {[%clk 0:03:00]} 4. Nxd4 {[%clk 0:03:00]}  Nc6 {[%clk 0:03:01]} 5. Nc3 {[%clk 0:03:00]}  Qc7 {[%clk 0:03:01]} 6. Be2 {[%clk 0:02:59]}  a6 {[%clk 0:03:01]} 7. Nxc6 {[%clk 0:03:00]}  bxc6 {[%clk 0:03:01]} 8. Qd3 {[%clk 0:03:00]}  d5 {[%clk 0:02:53]} 9. Qg3 {[%clk 0:02:58]}  Qxg3 {[%clk 0:02:53]} 10. hxg3 {[%clk 0:02:59]}  Bb4 {[%clk 0:02:41]} 11. Bd2 {[%clk 0:02:59]}  Nf6 {[%clk 0:02:41]} 12. g4 {[%clk 0:02:53]}  c5 {[%clk 0:01:57]} 13. g5 {[%clk 0:02:48]}  Nxe4 {[%clk 0:01:56]} 14. Nxe4 {[%clk 0:02:48]}  dxe4 {[%clk 0:01:56]} 15. c3 {[%clk 0:02:40]}  Ba5 {[%clk 0:01:56]} 16. Be3 {[%clk 0:02:39]}  Rb8 {[%clk 0:01:49]} 17. O-O-O {[%clk 0:02:39]}  Bb6 {[%clk 0:01:46]} 18. Rh4 {[%clk 0:02:37]}  Bb7 {[%clk 0:01:45]} 19. Rdh1 {[%clk 0:02:38]}  Rc8 {[%clk 0:00:34]} 20. Rxh7 {[%clk 0:02:24]}  Rxh7 {[%clk 0:00:35]} 21. Rxh7 {[%clk 0:02:24]}  g6 {[%clk 0:00:36]} 22. Bc4 {[%clk 0:01:58]}  Ke7 {[%clk 0:00:28]} 23. Kc2 {[%clk 0:01:48]}  Bd5 {[%clk 0:00:27]} 24. Bxa6 {[%clk 0:01:29]}  Ra8 {[%clk 0:00:27]} 25. Bb5 {[%clk 0:01:30]}  Rxa2 {[%clk 0:00:26]} 26. c4 {[%clk 0:01:30]}  Bb7 {[%clk 0:00:26]} 27. Rh8 {[%clk 0:01:30]}  Ra8 {[%clk 0:00:24]} 28. Rh1 {[%clk 0:01:14]}  Ba6 {[%clk 0:00:21]} 29. Ra1 {[%clk 0:01:01]}  Bb7 {[%clk 0:00:21]} 30. Rd1 {[%clk 0:00:58]}  Rd8 {[%clk 0:00:22]} 31. Rxd8 {[%clk 0:00:57]}  Kxd8 {[%clk 0:00:23]} 32. b4 {[%clk 0:00:57]}  Ke7 {[%clk 0:00:13]} 33. bxc5 {[%clk 0:00:56]}  Bc7 {[%clk 0:00:13]} 34. g3 {[%clk 0:00:47]}  Be5 {[%clk 0:00:12]} 35. Kb3 {[%clk 0:00:47]}  Bc8 {[%clk 0:00:10]} 36. Kb4 {[%clk 0:00:46]}  Bc7 {[%clk 0:00:11]} 37. Bc6 {[%clk 0:00:42]}  Ba6 {[%clk 0:00:08]} 38. Bxe4 {[%clk 0:00:40]}  Kd7 {[%clk 0:00:05]} 39. c6+ {[%clk 0:00:37]}  Kc8 {[%clk 0:00:06]} 40. Bc2 {[%clk 0:00:32]}  Bd8 {[%clk 0:00:06]} 41. Ba4 {[%clk 0:00:30]}  Be7+ {[%clk 0:00:06]} 42. Bc5 {[%clk 0:00:28]}  Bxg5 {[%clk 0:00:06]} 43. Bb5 {[%clk 0:00:29]}  Bxb5 {[%clk 0:00:04]} 44. cxb5 {[%clk 0:00:29]}  Kc7 {[%clk 0:00:04]} 45. Ka5 {[%clk 0:00:25]}  Bd2+ {[%clk 0:00:03]} 46. Ka6 {[%clk 0:00:25]}  Be1 {[%clk 0:00:02]} 47. g4 {[%clk 0:00:24]}  f5 {[%clk 0:00:02]} 48. f3 {[%clk 0:00:24]}  e5 {[%clk 0:00:02]} 49. Be3 {[%clk 0:00:22]}  e4 {[%clk 0:00:02]} 50. Bf4+ {[%clk 0:00:21]}  Kc8 {[%clk 0:00:02]} 51. b6 {[%clk 0:00:21]} 1-0


[Site "https://www.chess.com"]